fUSD/lending_fUSD_20250417
["ID","MTS","AMOUNT","RATE_DAILY","PERIOD"]
[358300431,1744906165803,-2209.09,0.00027714,2]
[358300432,1744906165824,-2751.0,0.00027874,2]
[358300433,1744906165845,-635.56,0.000284,2]
[358300434,1744906165865,-500.0,0.0002855,5]
[358300435,1744906165889,-165.51879553,0.0002855,5]
[358300436,1744906165912,-587.0,0.00028672,2]
[358300437,1744906165936,-1387.32,0.00028696,2]
[358300438,1744906165959,-160.2,0.00028767,2]
[358300439,1744906165981,-250.0,0.00028832,2]
[358300440,1744906166002,-178.99,0.00028835,2]
[358300441,1744906166024,-259.67904934,0.00029,2]
[358300442,1744906166045,-550.0,0.00029,2]
[358300443,1744906166066,-155.55,0.00029056,2]
[358300444,1744906166087,-2053.0,0.00029176,2]
[358300445,1744906166110,-1000.58,0.00029452,2]
[358300446,1744906166131,-999.54,0.0003,2]
[358300447,1744906166152,-160.2,0.00030137,2]
[358300448,1744906166174,-1000.0,0.0003014,2]
[358300449,1744906166195,-1000.0,0.00030521,2]
[358300450,1744906166216,-1000.0,0.00030521,2]
[358300451,1744906166236,-2500.0,0.00030521,2]
[358300452,1744906166258,-3798.43104207,0.00030521,2]
[358300453,1744906166280,-465.52331498,0.00030619,2]
[358300454,1744906166301,-9999.99,0.0003062,2]
[358300455,1744906166322,-299.99,0.0003062,12]
[358300456,1744906166344,-2241.81,0.0003062,2]
[358300457,1744906166365,-14205.06,0.0003062,10]
[358300458,1744906166387,-150.99,0.0003062,2]
[358300459,1744906166410,-9999.99,0.0003062,2]
[358300460,1744906166432,-485.32,0.0003062,2]
[358300461,1744906166454,-9999.99,0.0003062,2]
[358300462,1744906166477,-499.99,0.0003062,2]
[358300463,1744906166500,-4195.24,0.0003062,2]
[358300464,1744906166523,-999.99,0.0003062,2]
[358300465,1744906166546,-150.99,0.0003062,2]
[358300466,1744906166569,-500.0,0.00030673,5]
[358300467,1744906166592,-153.364938,0.00030673,5]
[358300468,1744906166617,-500.0,0.00030673,5]
[358300469,1744906166640,-500.45459974,0.00030673,5]
[358300470,1744906166667,-164.0,0.00030808,2]
[358300471,1744906166691,-500.0,0.00030816,5]
[358300472,1744906166716,-1387.32,0.0003096,2]
[358300473,1744906166863,-600.0,0.00031,2]
[358300474,1744906166887,-364.0,0.0003123,3]
[358300475,1744906166909,-755.1642,0.0003123,2]
[358300476,1744906166931,-858.3166,0.0003123,2]
[358300477,1744906166954,-1810.3253,0.0003123,2]
[358300478,1744906166976,-155.765,0.0003123,2]
[358300479,1744906166998,-14778.4724,0.0003123,2]
[358300480,1744906167020,-155.55,0.00031271,2]
[358300481,1744906167041,-152.17,0.00031316,2]
[358300482,1744906167062,-152.17,0.0003132,2]
[358300483,1744906167083,-382.4543,0.00031326,2]
[358300484,1744906167106,-721.0723,0.00031326,2]
[358300485,1744906167126,-29997.00855451,0.0003133,2]
[358300486,1744906167148,-160.2,0.00031507,2]
[358300487,1744906167169,-5068.70775312,0.000317,2]
[358300488,1744906167191,-5411.7491,0.00032112,2]
[358300489,1744906167212,-152.17,0.00032222,2]
[358300490,1744906167232,-152.17,0.00032222,2]
[358300491,1744906167253,-19999.99,0.00032232,2]
[358300492,1744906167274,-22950.92722947,0.00032232,2]
[358300493,1744906170241,-1468.58277053,0.00032232,2]
[358300494,1744906170264,-158.49,0.00032877,2]
[358300495,1744906170286,-160.2,0.00032877,2]
[358300496,1744906170308,-500.0,0.00032938,2]
[358300497,1744906170330,-650.0,0.00033,2]
[358300498,1744906170354,-1000.0,0.00033037,2]
[358300499,1744906170375,-200.0,0.00033151,2]
[358300500,1744906170397,-1387.32,0.00033224,2]
[358300501,1744906170420,-1000.0,0.00033489,2]
[358300502,1744906170441,-892.40905627,0.00033505,2]
[358300503,1744906170462,-910.33492546,0.00034029,5]
[358300504,1744906170483,-164.0,0.00034232,2]
[358300505,1744906170504,-150.0,0.00034548,10]
[358300506,1744906170525,-822.16,0.00035,120]
[358300507,1744906170546,-700.0,0.00035,2]
[358300508,1744906170568,-1387.32,0.00035488,2]
[358300509,1744906170590,-3798.43104201,0.00036008,2]
[358300510,1744906170612,-1000.0,0.00036152,5]
[358300511,1744906170632,-1000.0,0.00036152,5]
[358300512,1744906170657,-1184.09423225,0.00036325,5]
[358300513,1744906170678,-1184.09423224,0.00036325,5]
[358300514,1744906170701,-778.04,0.00036412,2]
[358300515,1744906170724,-1000.0,0.00036838,2]
[358300516,1744906170747,-750.0,0.00037,2]
[358300517,1744906170768,-152.17,0.00037033,2]
[358300518,1744906170789,-152.17,0.00037033,2]
[358300519,1744906170815,-22230.08030124,0.00037043,2]
[358300520,1744906172117,-3908.9225219,0.00037043,2]
[358300521,1744906173108,-4379.36386709,0.00037043,2]
[358300538,1744906231884,-463.31949792,0.0002786,2]
[358300539,1744906231900,-1000.0,0.00030521,2]
[358300540,1744906231911,-250.0,0.00030646,2]
[358300541,1744906231923,-500.0,0.0003113,2]
[358300542,1744906231935,-250.0,0.0003243,2]
[358300543,1744906231946,-250.0,0.00035342,2]
[358300544,1744906231958,-217.53947198,0.00036943,2]
[358300545,1744906231968,-4382.46594329,0.00037043,2]
[358300546,1744906231982,-2343.40336648,0.00037043,2]
[358300547,1744906231992,-500.0,0.00037342,2]
[358300548,1744906232002,-400.0,0.00037464,2]
[358300549,1744906232013,-857.05,0.00037465,2]
[358300550,1744906232023,-14536.85253602,0.00037465,10]
[358300551,1744906232035,-12257.20746398,0.00037465,10]
[358300552,1744906232046,-346.18,0.00037655,2]
[358300553,1744906232056,-556.57,0.00037655,2]
[358300554,1744906232066,-6450.97,0.00037655,2]
[358300555,1744906232076,-164.0,0.00037655,2]
[358300556,1744906232086,-1387.32,0.00037752,2]
[358300557,1744906232095,-800.0,0.00039,2]
[358300558,1744906232105,-3648.04726235,0.0004,10]
[358300559,1744906232118,-3908.70974946,0.0004,10]
[358300560,1744906232128,-1767.76865294,0.0004,30]
[358300561,1744906232138,-1387.32,0.00040015,2]
[358300562,1744906232151,-6833.78,0.00040015,2]
[358300563,1744906232161,-150.99,0.00040015,2]
[358300564,1744906232170,-560.0,0.00040067,5]
[358300565,1744906232180,-1000.0,0.00040187,2]
[358300566,1744906232190,-5885.64149819,0.00040633,15]
[358300567,1744906232200,-151.0,0.00040733,2]
[358300569,1744906232213,-668.65185757,0.00040733,2]
[358300570,1744906232223,-207.4,0.00040733,2]
[358300571,1744906232233,-1775.0,0.00040996,2]
[358300572,1744906232244,-164.0,0.00041078,2]
[358300573,1744906232253,-296.92457074,0.00041281,2]
[358300574,1744906232264,-693.3919763,0.00041281,2]
[358300575,1744906232274,-156.82,0.00041341,30]
[358300576,1744906232284,-1116.16457263,0.00041829,2]
[358300577,1744906232294,-845.17712217,0.000419,30]
[358300578,1744906232310,-1984.66287683,0.000419,30]
[358300579,1744906232321,-1501.0,0.00042,2]
[358300581,1744906232330,-215.0738,0.00042102,2]
[358300582,1744906232340,-1387.32,0.00042279,2]
[358300583,1744906232349,-783.0,0.00042851,5]
[358300584,1744906232359,-223.0315306,0.00043471,2]
[358300585,1744906232368,-300.0,0.0004358,120]
[358300586,1744906232378,-1140.743,0.00043888,30]
[358300587,1744906232388,-170.128,0.00043938,69]
[358300588,1744906232398,-913.85,0.00043938,69]
[358300589,1744906232408,-158.49,0.0004409,2]
[358300590,1744906232418,-1387.32,0.00044543,2]
[358300591,1744906232428,-231.28369723,0.0004484,2]
[358300592,1744906232438,-5303.32360488,0.00044996,15]
[358300593,1744906232458,-582.31789324,0.00044996,15]
[358300594,1744906232469,-8167.87929432,0.00045,30]
[358300599,1744906237898,-27892.16692343,0.00045,30]
[358300601,1744906237912,-7217.28000525,0.00045,30]
[358300603,1744906237924,-2066.6999484,0.00045,30]
[358300604,1744906237990,-1469.03829798,0.00045,30]
[358300605,1744906238003,-1838.44336457,0.00045,30]
[358300606,1744906238016,-568.73347939,0.00045,30]
[358300607,1744906238028,-263.87137854,0.00045,30]
[358300608,1744906238315,-651.19747975,0.00045,30]
[358300609,1744906238327,-17209.03609674,0.00045,30]
[358300636,1744906240327,-21470.69430711,0.00045,30]
[358300637,1744906240337,-151.0,0.00045,120]
[358300638,1744906240347,-150.0,0.00045589,10]
[358300639,1744906240356,-591.0,0.00045829,5]
[358300640,1744906240366,-239.84119403,0.00046209,2]
[358300641,1744906240375,-1387.32,0.00046807,2]
[358300642,1744906240385,-823.07,0.00047331,2]
[358300643,1744906240395,-248.71531821,0.00047578,2]
[358300644,1744906240405,-184.59,0.00047766,2]
[358300645,1744906240415,-250.0,0.00048099,120]
[358300646,1744906240424,-201.26501,0.000486,120]
[358300647,1744906240434,-257.91778498,0.00048947,2]
[358300648,1744906240444,-997.319999,0.00049,120]
[358300649,1744906240453,-1387.32,0.00049071,2]
[358300650,1744906240463,-5885.64149812,0.00049359,15]
[358300651,1744906240472,-369.0,0.0005,120]
[358300652,1744906240482,-1025.06939548,0.0005,120]
[358300653,1744906240491,-2000.0,0.0005,60]
[358300654,1744906240501,-299.0,0.0005,120]
[358300655,1744906240510,-267.46074303,0.00050316,2]
[358300657,1744906240520,-1387.32,0.00051335,2]
[358300658,1744906240530,-277.35679052,0.00051685,2]
[358300660,1744906240540,-2697.23,0.00052,120]
[358300662,1744906240550,-369.0,0.00052,120]
[358300664,1744906240559,-151.0,0.00052,120]
[358300665,1744906240569,-299.0,0.00052,120]
[358300666,1744906240579,-300.0,0.000524,120]
[358300667,1744906240588,-1108.98090253,0.00052588,24]
[358300668,1744906240598,-287.61899177,0.00053054,2]
[358300669,1744906240608,-257.0,0.00053096,2]
[358300671,1744906240617,-4056.98372753,0.00053358,4]
[358300672,1744906240627,-3885.84556988,0.00053358,4]
[358300673,1744906240638,-8051.38650803,0.00053368,5]
[358300674,1744906240652,-4409.38643258,0.00053588,120]
[358300676,1744906240673,-1387.32,0.00053599,2]
[358300677,1744906240685,-5885.64149812,0.00053722,15]
[358300678,1744906240696,-515.197935,0.00054,2]
[358300679,1744906240706,-298.26089446,0.00054423,2]
[358300680,1744906240718,-151.0,0.00054932,120]
[358300681,1744906240729,-152.18,0.00055024,30]
[358300682,1744906240739,-156.82,0.00055034,120]
[358300683,1744906240750,-309.29654756,0.00055792,2]
[358300684,1744906240760,-1387.32,0.00055863,2]
[358300685,1744906240771,-4056.98372753,0.0005599,4]
[358300686,1744906240781,-369.0,0.00056,120]
[358300687,1744906240791,-3885.84556988,0.00056365,4]
[358300688,1744906240802,-4056.98372753,0.00056537,4]
[358300689,1744906240812,-221.32351177,0.00056712,30]
[358300690,1744906240822,-320.74051982,0.00057161,2]
[358300691,1744906240832,-151.0,0.00057863,120]
[358300692,1744906240842,-3885.84556988,0.00057944,4]
[358300693,1744906240851,-369.0,0.00058,120]
[358300694,1744906240861,-186.0,0.00058,120]
[358300695,1744906240871,-5885.64149812,0.00058085,15]
[358300696,1744906240881,-1387.32,0.00058127,2]
[358300697,1744906240891,-4056.98372753,0.0005852,4]
[358300698,1744906240902,-332.60791905,0.0005853,2]
[358300699,1744906240912,-500.0,0.0005989,120]
[358300700,1744906240921,-500.0,0.0005989,120]
[358300701,1744906240931,-376.76737199,0.0005989,120]
[358300702,1744906240940,-344.91441206,0.00059899,2]
[358300703,1744906240949,-200.0,0.0006,120]
[358300704,1744906240960,-227.94890126,0.0006,2]
[358300705,1744906240970,-215.41,0.0006,120]
[358300706,1744906240979,-369.0,0.0006,120]
[358300707,1744906240989,-4056.98372753,0.0006038,5]
[358300708,1744906240999,-1387.32,0.0006039,2]
[358300709,1744906241008,-3885.84556988,0.00060438,5]
[358300710,1744906241018,-913.85,0.00060454,120]
[358300711,1744906241027,-151.0,0.00060795,120]
[358300712,1744906241036,-4056.98372753,0.0006107,5]
[358300713,1744906241046,-357.6762453,0.00061268,2]
[358300714,1744906241056,-369.0,0.00062,120]
[358300715,1744906241066,-5885.64149812,0.00062448,15]
[358300716,1744906241076,-3885.84556988,0.00062627,5]
[358300717,1744906241085,-370.91026638,0.00062637,2]
[358300718,1744906241094,-1387.32,0.00062654,2]
[358300719,1744906241104,-4056.98372753,0.0006343,5]
[358300720,1744906241113,-151.0,0.00063726,120]
[358300721,1744906241123,-369.0,0.00064,120]
[358300722,1744906241132,-384.63394623,0.00064006,2]
[358300723,1744906241141,-3885.84556988,0.00064908,5]
[358300724,1744906241153,-1387.32,0.00064918,2]
[358300725,1744906241162,-4056.98372753,0.0006499,5]
[358300726,1744906241172,-1000.0,0.00065,120]
[358300727,1744906241182,-600.0,0.00065375,2]
[358300728,1744906241192,-4056.98372753,0.0006598,5]
[358300729,1744906241201,-3885.84556988,0.0006598,5]
[358300730,1744906241211,-369.0,0.00066,120]
[358300731,1744906241220,-151.0,0.00066658,120]
[358300732,1744906241230,-4920.16813714,0.00066811,15]
[358300733,1744906241244,-965.47336098,0.00066811,15]
[358300734,1744906241253,-1387.32,0.00067182,2]
[358300735,1744906241263,-300.0,0.000679,24]
[358300736,1744906241272,-369.0,0.00068,120]
[358300737,1744906241281,-186.0,0.00068,120]
[358300738,1744906241290,-4056.98372753,0.00068203,5]
[358300739,1744906241299,-161.7485,0.00068393,10]
[358300740,1744906241309,-169.4440718,0.00068393,49]
[358300741,1744906241319,-630.96450439,0.00068393,49]
[358300742,1744906241329,-522.92166682,0.00068393,113]
[358300743,1744906241338,-24341.9023652,0.00068463,5]
[358300744,1744906241348,-19429.2278494,0.00068463,5]
[358300745,1744906241357,-152.18,0.00068473,30]
[358300746,1744906241366,-151.0,0.00068473,120]
[358300747,1744906241376,-151.0,0.00068473,120]
[358300748,1744906241386,-151.0,0.00068473,120]
[358300749,1744906241397,-151.0,0.00068473,120]
[358300750,1744906241407,-152.372545,0.00068473,120]
[358300751,1744906241416,-151.0,0.00068473,120]
[358300752,1744906241426,-151.0,0.00068473,120]
[358300753,1744906241435,-151.0,0.00068473,120]
[358300754,1744906241445,-151.0,0.00068473,120]
[358300755,1744906241455,-151.0,0.00068473,120]
[358300756,1744906241465,-151.0,0.00068473,120]
[358300757,1744906241474,-151.0,0.00068473,120]
[358300758,1744906241484,-151.0,0.00068473,120]
[358300759,1744906241493,-151.0,0.00068473,120]
[358300760,1744906241503,-133880.463008,0.00068483,5]
[358300761,1744906241513,-22070.32658967,0.00068483,5]
[358300762,1744906241530,-719.14568,0.00068483,5]
[358300763,1744906241589,-3854.3765977,0.00068483,5]
[358300764,1744906241600,-335.51670001,0.00068483,5]
[358300765,1744906241611,-10372.79048274,0.00068483,5]
[358300778,1744906244581,-1003.90985324,0.0003113,2]
[358300779,1744906244616,-72.00283364,0.0003113,2]
[358300840,1744906245195,-551.46430339,0.0003113,2]
[358300843,1744906245210,-504.76511919,0.0003113,2]
[358300845,1744906245221,-367.85789054,0.0003113,2]
[358300847,1744906245230,-299.0,0.00054,120]
[358300849,1744906245239,-299.0,0.00056,120]
[358300851,1744906245249,-299.0,0.00058,120]
[358300853,1744906245258,-407.4931816,0.00068483,5]
[358300855,1744906245270,-368.62800926,0.00068483,5]
[358300858,1744906245288,-150.0,0.00053368,5]
[358300860,1744906245298,-2441.59082581,0.00068483,5]
[358300939,1744906246005,-299.0,0.0006,120]
[358300941,1744906246015,-68233.80789021,0.00068483,5]
[358300943,1744906246024,-151.0,0.00068483,120]
[358300945,1744906246034,-151.0,0.00068483,120]
[358300947,1744906246044,-151.0,0.00068483,120]
[358300949,1744906246053,-153.640328,0.00068483,120]
[358300951,1744906246062,-151.0,0.00068483,120]
[358300953,1744906246071,-153.375843,0.00068483,120]
[358300955,1744906246080,-153.501416,0.00068483,120]
[358300957,1744906246089,-185.705817,0.00068483,120]
[358300959,1744906246099,-2131.341367,0.00068493,120]
[358300961,1744906246108,-771.514802,0.00068493,120]
[358300963,1744906246117,-500.0,0.00068493,120]
[358300965,1744906246126,-500.0,0.00068493,120]
[358300967,1744906246135,-500.0,0.00068493,120]
[358300969,1744906246145,-500.0,0.00068493,120]
[358300971,1744906246156,-500.0,0.00068493,120]
[358300973,1744906246165,-500.0,0.00068493,120]
[358300975,1744906246175,-500.0,0.00068493,120]
[358300977,1744906246184,-500.93488786,0.00068493,120]
[358300979,1744906246194,-500.0,0.00068493,120]
[358300981,1744906246204,-500.0,0.00068493,120]
[358300983,1744906246214,-500.0,0.00068493,120]
[358300985,1744906246223,-374.25295812,0.00068493,120]
[358300987,1744906246233,-500.0,0.00068493,120]
[358300989,1744906246242,-500.0,0.00068493,120]
[358300991,1744906246252,-500.0,0.00068493,120]
[358300993,1744906246261,-500.0,0.00068493,120]
[358300995,1744906246270,-500.0,0.00068493,120]
[358300997,1744906246280,-500.73057289,0.00068493,120]
[358300999,1744906246289,-500.0,0.00068493,120]
[358301001,1744906246299,-500.0,0.00068493,120]
[358301003,1744906246309,-500.0,0.00068493,120]
[358301005,1744906246318,-500.0,0.00068493,120]
[358301007,1744906246328,-500.0,0.00068493,120]
[358301009,1744906246337,-500.0,0.00068493,120]
[358301011,1744906246346,-644.7605578,0.00068493,120]
[358301013,1744906246355,-496.20160003,0.00068493,120]
[358301015,1744906246365,-500.0,0.00068493,120]
[358301017,1744906246375,-500.0,0.00068493,120]
[358301019,1744906246385,-500.0,0.00068493,120]
[358301021,1744906246394,-500.0,0.00068493,120]
[358301023,1744906246405,-500.0,0.00068493,120]
[358301025,1744906246415,-500.0,0.00068493,120]
[358301027,1744906246425,-500.0,0.00068493,120]
[358301029,1744906246435,-506.20642819,0.00068493,120]
[358301031,1744906246444,-500.0,0.00068493,120]
[358301033,1744906246454,-500.0,0.00068493,120]
[358301034,1744906246463,-563.68,0.00068493,120]
[358301036,1744906246472,-500.0,0.00068493,120]
[358301038,1744906246481,-500.0,0.00068493,120]
[358301040,1744906246490,-500.0,0.00068493,120]
[358301042,1744906246500,-554.78659122,0.00068493,120]
[358301044,1744906246509,-500.0,0.00068493,120]
[358301046,1744906246519,-500.0,0.00068493,120]
[358301048,1744906246528,-500.0,0.00068493,120]
[358301051,1744906246538,-500.0,0.00068493,120]
[358301053,1744906246550,-500.0,0.00068493,120]
[358301054,1744906246560,-500.0,0.00068493,120]
[358301056,1744906246569,-502.80725947,0.00068493,120]
[358301058,1744906246578,-500.0,0.00068493,120]
[358301060,1744906246588,-531.11377149,0.00068493,120]
[358301063,1744906246597,-500.0,0.00068493,120]
[358301065,1744906246607,-500.0,0.00068493,120]
[358301066,1744906246617,-500.0,0.00068493,120]
[358301069,1744906246626,-151.0,0.00068493,120]
[358301071,1744906246636,-500.0,0.00068493,120]
[358301073,1744906246645,-500.0,0.00068493,120]
[358301075,1744906246655,-500.0,0.00068493,120]
[358301077,1744906246667,-536.8733054,0.00068493,120]
[358301079,1744906246677,-500.0,0.00068493,120]
[358301080,1744906246686,-500.0,0.00068493,120]
[358301083,1744906246696,-500.0,0.00068493,120]
[358301084,1744906246707,-266.39536749,0.00068493,120]
[358301087,1744906246717,-500.0,0.00068493,120]
[358301089,1744906246726,-359.69960649,0.00068493,120]
[358301091,1744906246736,-500.0,0.00068493,120]
[358301093,1744906246746,-500.0,0.00068493,120]
[358301095,1744906246755,-463.03567596,0.00068493,120]
[358301097,1744906246765,-526.38,0.00068493,120]
[358301099,1744906246774,-500.0,0.00068493,120]
[358301101,1744906246784,-500.0,0.00068493,120]
[358301103,1744906246793,-500.0,0.00068493,120]
[358301105,1744906246802,-500.0,0.00068493,120]
[358301107,1744906246811,-500.0,0.00068493,120]
[358301109,1744906246821,-526.61266855,0.00068493,120]
[358301111,1744906246832,-500.0,0.00068493,120]
[358301113,1744906246843,-500.0,0.00068493,120]
[358301115,1744906246852,-500.0,0.00068493,120]
[358301117,1744906246861,-515.85028159,0.00068493,120]
[358301119,1744906246870,-500.0,0.00068493,120]
[358301121,1744906246879,-389.17,0.00068493,120]
[358301123,1744906246888,-500.0,0.00068493,120]
[358301125,1744906246899,-511.18455924,0.00068493,120]
[358301127,1744906246909,-500.0,0.00068493,120]
[358301128,1744906246919,-500.0,0.00068493,120]
[358301130,1744906246928,-307.92370059,0.00068493,120]
[358301131,1744906246937,-500.0,0.00068493,120]
[358301132,1744906246947,-500.0,0.00068493,120]
[358301133,1744906246956,-500.0,0.00068493,120]
[358301134,1744906246966,-500.0,0.00068493,120]
[358301135,1744906246975,-500.0,0.00068493,120]
[358301136,1744906246985,-500.0,0.00068493,120]
[358301137,1744906246995,-500.0,0.00068493,120]
[358301138,1744906247004,-500.0,0.00068493,120]
[358301139,1744906247014,-500.0,0.00068493,120]
[358301140,1744906247025,-500.0,0.00068493,120]
[358301141,1744906247034,-500.0,0.00068493,120]
[358301142,1744906247045,-500.0,0.00068493,120]
[358301143,1744906247054,-500.0,0.00068493,120]
[358301144,1744906247065,-500.0,0.00068493,120]
[358301145,1744906247074,-500.0,0.00068493,120]
[358301146,1744906247083,-605.74192691,0.00068493,120]
[358301147,1744906247093,-500.0,0.00068493,120]
[358301148,1744906247102,-500.0,0.00068493,120]
[358301149,1744906247113,-269.98,0.00068493,120]
[358301150,1744906247122,-500.0,0.00068493,120]
[358301151,1744906247132,-637.82374794,0.00068493,120]
[358301152,1744906247142,-500.0,0.00068493,120]
[358301153,1744906247153,-500.0,0.00068493,120]
[358301155,1744906247162,-500.0,0.00068493,120]
[358301157,1744906247172,-500.0,0.00068493,120]
[358301159,1744906247182,-500.0,0.00068493,120]
[358301160,1744906247191,-500.0,0.00068493,120]
[358301162,1744906247201,-500.0,0.00068493,120]
[358301164,1744906247211,-527.22754362,0.00068493,120]
[358301166,1744906247220,-532.3029607,0.00068493,120]
[358301168,1744906247233,-500.0,0.00068493,30]
[358301170,1744906247243,-504.2319828,0.00068493,120]
[358301171,1744906247252,-505.01442583,0.00068493,120]
[358301173,1744906247262,-500.0,0.00068493,120]
[358301175,1744906247272,-500.0,0.00068493,120]
[358301177,1744906247281,-500.0,0.00068493,120]
[358301179,1744906247291,-173.3,0.00068493,120]
[358301181,1744906247300,-500.0,0.00068493,120]
[358301183,1744906247310,-500.0,0.00068493,120]
[358301184,1744906247319,-500.0,0.00068493,120]
[358301186,1744906247329,-500.0,0.00068493,120]
[358301188,1744906247339,-500.0,0.00068493,7]
[358301190,1744906247348,-501.0,0.00068493,120]
[358301192,1744906247358,-250.0,0.00068493,120]
[358301194,1744906247367,-500.0,0.00068493,120]
[358301195,1744906247377,-500.0,0.00068493,120]
[358301197,1744906247386,-500.0,0.00068493,120]
[358301199,1744906247395,-500.0,0.00068493,120]
[358301201,1744906247407,-500.0,0.00068493,120]
[358301202,1744906247417,-500.0,0.00068493,120]
[358301204,1744906247427,-522.31914759,0.00068493,120]
[358301206,1744906247437,-336.90805414,0.00068493,120]
[358301208,1744906247447,-542.70522221,0.00068493,120]
[358301210,1744906247456,-500.0,0.00068493,120]
[358301211,1744906247466,-500.0,0.00068493,120]
[358301221,1744906247569,-500.0,0.00068493,120]
[358301223,1744906247580,-500.0,0.00068493,120]
[358301225,1744906247589,-500.0,0.00068493,120]
[358301226,1744906247599,-500.0,0.00068493,120]
[358301228,1744906247609,-500.0,0.00068493,120]
[358301230,1744906247618,-500.0,0.00068493,120]
[358301232,1744906247628,-1000.0,0.00068493,120]
[358301234,1744906247637,-500.0,0.00068493,120]
[358301236,1744906247648,-500.0,0.00068493,120]
[358301238,1744906247657,-500.0,0.00068493,120]
[358301239,1744906247668,-500.0,0.00068493,120]
[358301241,1744906247680,-500.0,0.00068493,120]
[358301243,1744906247690,-500.0,0.00068493,120]
[358301245,1744906247700,-500.0,0.00068493,120]
[358301247,1744906247709,-500.0,0.00068493,120]
[358301249,1744906247721,-500.0,0.00068493,120]
[358301250,1744906247731,-540.43,0.00068493,120]
[358301251,1744906247742,-500.0,0.00068493,120]
[358301252,1744906247754,-500.0,0.00068493,120]
[358301253,1744906247763,-627.73494628,0.00068493,120]
[358301254,1744906247773,-500.0,0.00068493,120]
[358301255,1744906247783,-500.0,0.00068493,120]
[358301256,1744906247793,-500.0,0.00068493,120]
[358301257,1744906247802,-500.0,0.00068493,120]
[358301258,1744906247812,-500.0,0.00068493,120]
[358301259,1744906247821,-500.0,0.00068493,120]
[358301260,1744906247831,-500.0,0.00068493,120]
[358301261,1744906247841,-164.57165954,0.00068493,120]
[358301262,1744906247850,-500.0,0.00068493,120]
[358301263,1744906247859,-500.0,0.00068493,120]
[358301264,1744906247869,-500.0,0.00068493,120]
[358301265,1744906247879,-500.0,0.00068493,120]
[358301266,1744906247888,-570.77,0.00068493,120]
[358301267,1744906247898,-500.0,0.00068493,120]
[358301268,1744906247907,-500.0,0.00068493,120]
[358301269,1744906247917,-500.0,0.00068493,120]
[358301270,1744906247926,-500.0,0.00068493,120]
[358301271,1744906247936,-500.0,0.00068493,120]
[358301272,1744906247945,-501.6252658,0.00068493,120]
[358301273,1744906247954,-500.0,0.00068493,120]
[358301274,1744906247964,-151.0,0.00068493,120]
[358301275,1744906247973,-151.0,0.00068493,120]
[358301276,1744906247982,-500.0,0.00068493,120]
[358301277,1744906247991,-151.0,0.00068493,120]
[358301278,1744906248001,-500.0,0.00068493,120]
[358301279,1744906248010,-567.4,0.00068493,120]
[358301280,1744906248019,-338.12817418,0.00068493,120]
[358301281,1744906248039,-161.87182582,0.00068493,120]
[358301282,1744906248048,-500.0,0.00068493,120]
[358301283,1744906248058,-500.0,0.00068493,120]
[358301284,1744906248067,-521.30525559,0.00068493,120]
[358301285,1744906248076,-500.0,0.00068493,120]
[358301286,1744906248085,-500.0,0.00068493,120]
[358301287,1744906248094,-500.0,0.00068493,120]
[358301288,1744906248104,-500.0,0.00068493,120]
[358301289,1744906248113,-500.0,0.00068493,120]
[358301290,1744906248123,-168.6143976,0.00068493,120]